bitfinex-derivatives/quotes_ETHF0:USTF0_20210401
["timestamp","ask_amount","ask_price","bid_price","bid_amount"]
[1617320668608,13.8273,1973.1,1972.9,57.2462]
[1617320668811,13.8273,1973.1,1972.9,58.3462]
[1617320669007,13.1173,1973.1,1973.0,4.00695]
[1617320669206,12.3343,1973.1,1973.0,6.00695]
[1617320669407,12.3343,1973.1,1973.0,4.00695]
[1617320669709,10.8413,1973.1,1973.0,4.00695]
[1617320670006,8.3285,1973.1,1973.0,6.00695]
[1617320670407,5.2765,1973.1,1973.0,6.00695]
[1617320671008,2.2245,1973.1,1973.0,6.00695]
[1617320671209,14.6324,1973.8,1973.0,6.00695]
[1617320672911,14.6324,1973.8,1973.2,100.9646]
[1617320673112,14.6324,1973.8,1973.7,2.90695]
[1617320675518,2.90695,1974.8,1973.8,1.1]
[1617320675723,2.90695,1974.8,1974.6,64.5035]
[1617320677120,2.90695,1974.8,1974.7,2.90695]
[1617320678224,2.90695,1974.8,1973.6,1.1]
[1617320678424,30.0,1974.7,1973.4,72.0115]
[1617320678624,30.0,1974.7,1972.2,2.0]
[1617320678828,72.0239,1974.4,1973.1,72.0239]
[1617320679123,72.0239,1974.4,1974.0,2.90695]
[1617320679124,73.4009,1974.4,1974.0,2.90695]
[1617320679723,103.4009,1974.4,1974.0,2.90695]
[1617320679924,105.4009,1974.4,1974.0,2.88695]
[1617320680125,105.4009,1974.4,1973.1,72.0239]
[1617320681129,105.4009,1974.4,1974.0,2.90695]
[1617320681332,33.377,1974.4,1974.0,2.90695]
[1617320681531,33.377,1974.4,1974.0,78.38275]
[1617320682733,2.0,1974.4,1974.0,78.38275]
[1617320682934,14.337,1974.6,1974.0,78.38275]
[1617320683135,2.90695,1974.4,1974.3,2.90695]
[1617320687242,76.8159,1974.3,1972.9,1.0249]
[1617320687445,2.0,1974.1,1972.9,1.0249]
[1617320687651,33.4607,1974.0,1972.9,1.0249]
[1617320688042,77.9695,1973.6,1972.9,1.0249]
[1617320688247,16.6765,1973.4,1972.9,1.0249]
[1617320688540,14.6765,1973.4,1971.9,1.1]
[1617320689143,14.6765,1973.4,1973.3,2.90695]
[1617320689341,14.6765,1973.4,1973.3,4.00695]
[1617320690763,3.8636,1973.4,1973.3,4.00695]
[1617320691043,14.8068,1974.3,1973.5,1.1]
[1617320691243,14.8068,1974.3,1974.2,2.90695]
[1617320691444,14.8068,1974.3,1974.2,4.35735]
[1617320696048,64.3131,1975.0,1974.2,5.45735]
[1617320697250,64.3131,1975.0,1974.9,4.18065]
[1617320697950,13.8854,1975.7,1974.9,4.18065]
[1617320698549,13.8854,1975.7,1975.0,1.1]
[1617320699249,13.8854,1975.7,1975.6,74.53735]
[1617320701571,13.8854,1975.7,1975.6,2.90695]
[1617320701749,45.8854,1975.7,1975.6,2.90695]
[1617320701953,47.106,1975.7,1974.5,76.7585]
[1617320702650,17.106,1975.7,1974.5,76.7585]
[1617320702950,47.106,1975.7,1974.5,76.7585]
[1617320703351,47.106,1975.7,1975.5,2.90695]
[1617320704252,17.106,1975.7,1975.5,2.90695]
[1617320704555,15.8854,1975.7,1975.5,2.90695]
[1617320705353,2.90695,1975.6,1975.5,2.90695]
[1617320708260,2.90695,1975.6,1974.5,76.7585]
[1617320709565,15.8854,1975.7,1975.5,2.90695]
[1617320710163,45.8854,1975.7,1975.6,80.1997]
[1617320710364,15.8854,1975.7,1975.6,80.1997]
[1617320711367,45.8854,1975.7,1975.6,80.1997]
[1617320711667,48.79235,1975.7,1975.6,80.1997]
[1617320712070,48.79235,1975.7,1974.2,1.1]
[1617320712369,50.11615,1975.7,1974.0,64.4131]
[1617320712970,14.6051,1975.6,1974.0,64.4131]
[1617320713269,2.0,1975.4,1974.0,64.4131]
[1617320713470,2.0,1975.4,1970.5,5.28495783]
[1617320713471,2.0,1975.2,1974.4,2.90695]
[1617320713669,32.0,1975.1,1974.4,2.90695]
[1617320714471,30.0,1975.0,1974.4,2.90695]
[1617320715074,32.0,1975.0,1974.4,2.90695]
[1617320715274,14.34,1974.9,1974.4,2.90695]
[1617320715475,2.90695,1974.5,1974.4,2.90695]
[1617320716475,14.34,1974.9,1974.4,2.90695]
[1617320717379,14.34,1974.9,1974.4,4.17245]
[1617320717577,14.34,1974.9,1974.8,3.92205]
[1617320719679,14.34,1974.9,1974.8,5.02205]
[1617320721280,13.7986,1974.9,1974.8,5.02205]
[1617320722184,13.7986,1974.9,1974.8,4.00695]
[1617320725889,13.7986,1974.9,1974.8,2.90695]
[1617320726589,15.3764,1974.9,1974.8,2.90695]
[1617320731095,15.3764,1974.9,1974.7,69.1656]
[1617320731697,15.3764,1974.9,1974.8,2.90695]
[1617320733701,45.3764,1974.9,1974.8,2.90695]
[1617320734058,81.9165,1974.8,1973.5,1.1]
[1617320734220,30.0,1974.7,1973.1,81.9165]
[1617320734426,14.6882,1974.6,1973.1,81.9165]
[1617320734702,46.0885,1974.5,1973.1,81.9165]
[1617320734904,46.0885,1974.5,1970.4,5.29656166]
[1617320734905,2.0,1974.4,1970.4,4.11967296]
[1617320735105,2.0,1974.4,1969.2,8.82787063]
[1617320735106,74.6877,1973.9,1972.4,74.5153]
[1617320735804,74.6877,1973.9,1973.8,2.90695]
[1617320736005,1.2724,1973.9,1973.8,2.90695]
[1617320736204,79.6334,1974.3,1973.8,2.90695]
[1617320738010,82.54035,1974.3,1974.2,2.90695]
[1617320740310,82.54035,1974.3,1973.5,80.7334]
[1617320740514,82.54035,1974.3,1973.5,79.6334]
[1617320741013,2.0,1974.2,1973.1,1.1]
[1617320741211,58.7746,1973.9,1973.1,1.1]
[1617320741410,60.2801,1973.9,1973.1,1.1]
[1617320741612,13.9242,1973.8,1973.1,1.1]
[1617320741910,13.9242,1973.8,1973.1,4.00695]
[1617320741911,4.28455,1973.3,1973.1,4.00695]
[1617320742711,13.5805,1973.2,1973.1,4.00695]
[1617320744416,13.5805,1973.2,1973.1,2.90695]
[1617320748022,77.3179,1973.2,1973.1,2.90695]
[1617320748235,107.3179,1973.2,1971.9,1.1]
[1617320749026,2.0,1973.1,1971.9,1.1]
[1617320749226,32.0,1973.1,1971.9,1.1]
[1617320749926,77.3179,1973.2,1972.8,2.90695]
[1617320751033,30.0,1973.1,1972.8,2.90695]
[1617320751934,30.0,1973.1,1971.9,1.1]
[1617320751935,30.0,1973.1,1973.0,2.90695]
[1617320752135,79.3179,1973.2,1973.0,2.90695]
[1617320752335,109.3179,1973.2,1973.0,2.90695]
[1617320753735,109.3179,1973.2,1971.9,1.1]
[1617320753937,109.3179,1973.2,1972.7,2.90695]
[1617320755942,2.90695,1972.8,1972.7,2.90695]
[1617320756239,4.33075,1972.8,1972.7,2.90695]
[1617320758145,34.33075,1972.8,1971.9,1.1]
[1617320758550,14.0638,1972.7,1971.9,1.1]
[1617320758745,44.0638,1972.7,1971.9,1.1]
[1617320758948,44.0638,1972.7,1970.9,1.1]
[1617320759150,68.5648,1972.5,1971.3,68.5648]
[1617320759354,100.5648,1972.5,1971.4,1.1]
[1617320759848,14.7569,1972.4,1971.4,1.1]
[1617320760047,30.0,1972.3,1972.1,2.90695]
[1617320762048,2.90695,1972.2,1972.1,2.90695]
[1617320762248,32.90695,1972.2,1972.1,2.90695]
[1617320762648,2.90695,1972.2,1972.1,2.90695]
[1617320762983,14.7569,1972.4,1972.1,59.95065]
[1617320764173,14.7569,1972.4,1972.3,2.90695]
[1617320764357,78.9835,1972.4,1972.3,2.90695]
[1617320766653,14.7569,1972.4,1972.3,2.90695]
[1617320766854,14.7569,1972.4,1972.3,4.24915]
[1617320771056,14.7569,1972.4,1972.3,5.34915]
[1617320772155,14.7569,1972.4,1972.3,8.35805]
[1617320772655,14.653,1972.4,1972.3,8.35805]
[1617320772857,14.4238,1972.4,1972.3,8.35805]
[1617320778766,14.4238,1972.4,1972.3,6.00695]
[1617320780867,14.4238,1972.4,1972.3,4.00695]
[1617320781675,14.4238,1972.4,1972.3,5.03005]
[1617320782169,14.4238,1972.4,1972.3,4.00695]
[1617320783269,15.9006,1972.4,1972.3,4.00695]
[1617320783593,15.9006,1972.4,1972.3,2.90695]
[1617320789677,14.4238,1972.4,1972.3,2.90695]
[1617320789880,14.4238,1972.4,1972.3,4.00695]
[1617320793684,14.4238,1972.4,1972.3,2.90695]
[1617320794784,15.5197,1972.4,1972.3,2.90695]
[1617320797689,14.4238,1972.4,1972.3,2.90695]
[1617320801098,14.4238,1972.4,1972.3,72.93425]
[1617320804001,14.4238,1972.4,1972.3,2.90695]
[1617320805001,14.4238,1972.4,1972.3,84.58555]
[1617320810108,14.4238,1972.4,1972.3,2.90695]
[1617320810420,14.4238,1972.4,1972.3,4.00695]
[1617320816716,14.4238,1972.4,1972.3,5.02745]
[1617320818920,14.4238,1972.4,1972.3,7.02745]
[1617320819218,13.2038,1972.4,1972.3,7.02745]
[1617320821047,13.0841,1972.4,1972.3,7.04745]
[1617320821427,12.666,1972.4,1972.3,7.04745]
[1617320822029,12.666,1972.4,1972.3,7.02745]
[1617320822244,12.666,1972.4,1972.3,4.00695]
[1617320822827,12.666,1972.4,1972.3,60.79305]
[1617320823530,12.666,1972.4,1972.3,4.00695]
[1617320824430,12.666,1972.4,1972.3,2.90695]
[1617320825831,42.666,1972.4,1972.3,2.90695]
[1617320826432,12.666,1972.4,1972.3,2.90695]
[1617320826630,12.666,1972.4,1972.1,2.90695]
[1617320828635,12.666,1972.4,1972.3,2.90695]
[1617320836242,12.666,1972.4,1972.3,87.72365]
[1617320841250,12.666,1972.4,1972.3,2.90695]
[1617320841448,14.3048,1972.4,1972.3,2.90695]
[1617320843151,16.3048,1972.4,1972.3,2.90695]
[1617320843352,14.3048,1972.4,1972.3,2.90695]
[1617320844654,12.666,1972.4,1972.3,2.90695]
[1617320846958,12.666,1972.4,1972.3,4.00695]
[1617320848257,12.666,1972.4,1972.3,2.90695]
[1617320849359,12.666,1972.4,1972.3,4.25325]
[1617320849559,12.666,1972.4,1972.3,5.35325]
[1617320851458,12.666,1972.4,1972.3,2.90695]
[1617320852759,14.666,1972.4,1972.3,2.90695]
[1617320852961,65.2732,1972.3,1972.1,2.90695]
[1617320853160,32.0,1972.2,1972.1,2.90695]
[1617320853563,30.0,1972.2,1972.1,2.90695]
[1617320854065,32.0,1972.2,1972.1,2.90695]
[1617320854262,2.0,1972.2,1972.1,2.90695]
[1617320854867,4.90695,1972.2,1972.1,2.90695]
[1617320855268,4.90695,1972.2,1971.3,1.1]
[1617320856069,4.90695,1972.2,1971.2,1.1]
[1617320856869,2.0,1972.2,1971.5,2.90695]
[1617320858872,2.90695,1971.6,1971.5,2.90695]
[1617320862476,2.90695,1971.6,1971.5,4.00695]
[1617320862775,67.2732,1972.3,1971.5,4.00695]
[1617320862975,2.90695,1972.0,1971.5,4.00695]
[1617320863176,59.5329,1971.8,1971.5,4.00695]
[1617320864877,59.5329,1971.8,1971.7,2.90695]
[1617320867078,62.43985,1971.8,1971.7,2.90695]
[1617320868380,64.43985,1971.8,1971.7,2.90695]
[1617320869182,64.43985,1971.8,1971.4,0.02]
[1617320869183,65.71115,1971.8,1971.5,2.90695]
[1617320870999,2.90695,1971.6,1971.5,2.90695]
[1617320871985,4.90695,1971.6,1971.5,2.90695]
[1617320872486,34.90695,1971.6,1971.5,2.90695]
[1617320872886,4.90695,1971.6,1971.5,2.90695]
[1617320873286,65.33635,1971.6,1971.5,2.90695]
[1617320875087,65.33635,1971.6,1971.4,0.02]
[1617320875287,14.0068,1971.5,1971.4,0.02]
[1617320875488,16.0068,1971.5,1971.4,0.02]
[1617320875690,30.901,1971.5,1971.4,0.02]
[1617320875890,30.901,1971.5,1970.1,1.1]
[1617320877188,30.901,1971.5,1971.2,2.90695]
[1617320877387,28.901,1971.5,1971.2,2.90695]
[1617320877989,28.901,1971.5,1971.2,2.92695]
[1617320879189,31.80795,1971.5,1971.4,2.90695]
[1617320880492,45.73835,1971.5,1971.4,2.90695]
[1617320881595,42.8314,1971.5,1971.4,2.90695]
[1617320882208,42.8314,1971.5,1971.4,4.00695]
[1617320883101,27.9372,1971.5,1971.4,4.00695]
[1617320887006,27.4753,1971.5,1971.4,4.00695]
[1617320887208,26.9253,1971.5,1971.4,4.00695]
[1617320888011,26.9253,1971.5,1971.4,4.02695]
[1617320888308,26.9253,1971.5,1971.4,4.00695]
[1617320890709,26.9253,1971.5,1971.4,4.02695]
[1617320891511,26.9253,1971.5,1971.4,4.00695]
[1617320897319,26.2867,1971.5,1971.4,4.00695]
[1617320898018,26.2867,1971.5,1971.4,4.02695]
[1617320898518,26.2867,1971.5,1971.4,4.00695]
[1617320898718,26.2867,1971.5,1971.4,67.84565]
[1617320903628,26.2867,1971.5,1971.4,66.74565]
[1617320909436,26.2867,1971.5,1971.4,2.90695]
[1617320909836,26.2867,1971.5,1971.3,0.02]
[1617320910337,67.0672,1971.4,1971.3,0.02]
[1617320910538,68.3027,1971.4,1971.3,0.02]
[1617320911337,71.20965,1971.4,1971.3,0.02]
[1617320913938,69.97415,1971.4,1971.3,0.02]
[1617320917945,67.0672,1971.4,1971.3,0.02]
[1617320919644,69.97415,1971.4,1971.3,0.02]
[1617320920948,67.0672,1971.4,1971.3,0.02]
[1617320925857,67.0672,1971.4,1971.2,2.90695]
[1617320930062,2.90695,1971.3,1971.2,2.90695]
[1617320935167,34.90695,1971.3,1971.2,2.90695]
[1617320935367,75.1864,1971.2,1971.1,0.02]
[1617320935667,107.1864,1971.2,1971.1,0.02]
[1617320936467,77.1864,1971.2,1971.1,0.02]
[1617320937268,77.1864,1971.2,1970.8,2.90695]
[1617320937869,75.1864,1971.2,1970.8,2.90695]
[1617320938070,2.90695,1970.9,1970.8,2.90695]
[1617320943377,2.90695,1970.9,1970.8,61.65605]
[1617320944277,2.90695,1970.9,1970.8,4.00695]
[1617320944780,2.90695,1970.9,1970.8,2.90695]
[1617320947484,61.01565,1970.9,1970.8,2.90695]
[1617320950890,58.1087,1970.9,1970.7,1.1]
[1617320952387,59.7117,1970.9,1970.7,1.1]
[1617320952589,62.61865,1970.9,1970.8,2.90695]
[1617320954594,62.61865,1970.9,1970.8,4.00695]
[1617320960998,61.01565,1970.9,1970.8,4.00695]
[1617320967503,58.1087,1970.9,1970.8,1.1]
[1617320967703,58.1087,1970.9,1970.6,0.02]
[1617320967906,1.3361,1971.0,1970.6,0.02]
[1617320968104,13.9906,1971.2,1970.6,0.02]
[1617320968904,13.9906,1971.2,1971.0,2.90695]
[1617320970807,2.90695,1971.1,1971.0,2.90695]
[1617320971006,4.47795,1971.1,1971.0,2.90695]
[1617320974010,6.47795,1971.1,1971.0,2.90695]
[1617320974712,4.47795,1971.1,1971.0,2.90695]
[1617320976915,74.61045,1971.1,1971.0,2.90695]
[1617320988438,71.7035,1971.1,1970.9,0.02]
[1617320989534,71.7035,1971.1,1971.0,2.90695]
[1617320989735,1.571,1971.1,1971.0,2.90695]
[1617320989942,13.9906,1971.2,1971.0,2.90695]
[1617320991033,2.0,1971.1,1971.0,2.90695]
[1617320991436,36.55055,1971.1,1971.0,2.90695]
[1617320991637,77.0515,1971.0,1970.9,0.02]
[1617320991840,107.0515,1971.0,1970.9,0.02]
[1617320992037,109.0515,1971.0,1970.9,0.02]
[1617320992439,109.0515,1971.0,1969.6,2.584]
[1617320992440,109.08127288,1971.0,1969.6,2.584]
[1617320992649,32.02977288,1971.0,1969.3,4.17188665]
[1617320992839,1.003,1969.5,1969.0,4.17225296]
[1617320993239,1.003,1969.5,1968.7,4.17245518]
[1617320993440,80.1654,1968.9,1968.8,1.1]
[1617320993742,81.302,1968.9,1968.6,5.27262162]
[1617320994739,81.302,1968.9,1968.6,1.1]
[1617320994939,81.282,1968.9,1968.6,1.1]
[1617320995139,1.1366,1968.9,1968.6,1.1]
[1617320995443,96.6498,1969.4,1968.9,82.4833]
[1617320995639,96.6498,1969.4,1969.0,1.1]
[1617320997442,14.1665,1969.4,1969.3,2.90695]
[1617321011756,17.07345,1969.4,1969.3,2.90695]
[1617321016358,94.40395,1969.4,1969.3,2.90695]
[1617321019560,17.07345,1969.4,1969.3,2.90695]
[1617321026470,14.1665,1969.4,1969.3,2.90695]
[1617321026671,14.1665,1969.4,1969.3,5.37475]
[1617321027678,13.3774,1969.4,1969.3,5.37475]
[1617321031078,13.3774,1969.4,1969.3,71.66645]
[1617321031878,14.6026,1969.7,1969.3,71.66645]
[1617321032278,14.6026,1969.7,1969.6,4.00695]
[1617321033882,14.6026,1969.7,1969.6,88.19895]
[1617321040090,14.6026,1969.7,1969.6,4.00695]
[1617321040491,14.6026,1969.7,1969.6,2.90695]
[1617321041492,82.5026,1969.2,1968.8,64.2296]
[1617321041694,82.5026,1969.2,1968.9,1.1]
[1617321042393,85.40955,1969.2,1969.1,4.00695]
[1617321044108,2.90695,1969.2,1969.1,4.00695]
[1617321045205,14.4796,1969.4,1969.1,4.00695]
[1617321046202,14.4796,1969.4,1969.3,2.90695]
[1617321048202,17.38655,1969.4,1969.3,2.90695]
[1617321054308,14.4796,1969.4,1969.3,2.90695]
[1617321055411,14.4796,1969.4,1969.3,4.00695]
[1617321058213,14.4796,1969.4,1969.3,1.1]
[1617321058415,14.4796,1969.4,1968.9,2.90695]
[1617321058614,16.4796,1969.4,1969.0,1.1]
[1617321060522,2.90695,1969.1,1968.9,2.90695]
[1617321060724,4.26525,1969.1,1968.2,1.1]
[1617321060925,82.474,1968.3,1968.2,1.1]
[1617321061625,82.474,1968.3,1968.2,1.12]
[1617321061826,82.474,1968.3,1968.2,0.02]
[1617321062525,82.474,1968.3,1968.2,2.92695]
[1617321062726,97.337,1968.3,1968.2,2.92695]
[1617321064628,15.8791,1968.3,1968.2,2.92695]
[1617321065031,14.863,1968.3,1968.2,2.92695]
[1617321070033,14.863,1968.3,1968.2,2.90695]
[1617321074839,14.863,1968.3,1968.2,4.32755]
[1617321075237,14.863,1968.3,1968.2,5.42755]
[1617321076238,14.863,1968.3,1968.2,72.91075]
[1617321086148,14.863,1968.3,1968.2,71.81075]
[1617321086549,14.863,1968.3,1968.2,72.91075]
[1617321094263,14.863,1968.3,1968.2,71.81075]
[1617321094562,14.863,1968.3,1968.2,71.79075]
[1617321096764,14.863,1968.3,1968.2,4.32755]
[1617321096964,14.863,1968.3,1968.2,2.90695]
[1617321098366,91.8744,1968.3,1968.2,2.90695]
[1617321099865,91.8744,1968.3,1968.2,4.00695]
[1617321100368,91.8744,1968.3,1968.2,4.02695]
[1617321102069,14.863,1968.3,1968.2,4.02695]
[1617321102270,14.863,1968.3,1968.2,75.51525]
[1617321105574,14.863,1968.3,1968.2,4.02695]
[1617321105975,85.7658,1968.3,1968.2,4.02695]
[1617321111085,85.7658,1968.3,1968.2,4.00695]
[1617321113387,85.7658,1968.3,1968.2,4.02695]
[1617321115302,85.7658,1968.3,1968.2,4.00695]
[1617321116694,14.863,1968.3,1968.2,4.00695]
[1617321117794,14.863,1968.3,1968.2,72.19655]
[1617321120292,14.863,1968.3,1968.2,72.21655]
[1617321123197,14.863,1968.3,1968.2,4.02695]
[1617321123998,14.863,1968.3,1968.2,5.04035]
[1617321125300,14.863,1968.3,1968.2,4.02695]
[1617321126301,14.863,1968.3,1968.2,5.05015]
[1617321127901,14.3325,1969.0,1968.2,5.05015]
[1617321128101,14.3325,1969.0,1968.2,7.05015]
[1617321128703,14.3325,1969.0,1968.2,7.03015]
[1617321129128,14.3325,1969.0,1968.9,5.29045]
[1617321129372,2.90695,1970.1,1969.2,75.4231]
[1617321129543,2.90695,1970.1,1969.3,1.1]
[1617321129904,2.90695,1970.1,1969.3,2.728]
[1617321131106,2.90695,1970.1,1970.0,5.25255]
[1617321131308,2.88695,1970.1,1970.0,5.25255]
[1617321133209,2.88695,1970.1,1970.0,2.90695]
[1617321137912,13.8064,1970.2,1970.0,4.00695]
[1617321142417,27.9118,1971.1,1970.2,76.4141]
[1617321143317,27.9118,1971.1,1971.0,2.90695]
[1617321143516,27.9118,1971.1,1971.0,4.06525]
[1617321153031,13.4379,1971.1,1971.0,4.06525]
[1617321153230,13.4379,1971.1,1971.0,5.16525]
[1617321154631,14.6218,1971.1,1971.0,4.00695]
[1617321154833,14.6218,1971.1,1971.0,2.90695]
[1617321155539,17.52875,1971.1,1971.0,2.90695]
[1617321155838,17.52875,1971.1,1968.4,7.773]
[1617321156141,67.9783,1970.9,1969.3,1.1]
[1617321156539,67.9783,1970.9,1969.3,3.1]
[1617321156740,13.837,1971.0,1969.3,3.1]
[1617321157040,13.837,1971.0,1970.4,82.7916]
[1617321157442,13.837,1971.0,1970.9,2.90695]
[1617321161445,16.74395,1971.0,1970.1,1.1]
[1617321161943,83.7044,1970.7,1970.1,1.1]
[1617321162442,83.7044,1970.7,1970.0,1.1]
[1617321162644,83.7044,1970.7,1969.6,83.7044]
[1617321163445,85.7044,1970.7,1970.1,2.90695]
[1617321163648,2.0,1970.5,1970.1,2.90695]
[1617321163947,2.0,1970.5,1969.6,83.7044]
[1617321164146,30.0,1970.4,1968.6,2.0]
[1617321164363,66.7948,1970.2,1969.2,66.7948]
[1617321164549,68.0026,1970.2,1969.2,66.7948]
[1617321165050,68.0026,1970.2,1969.2,67.8948]
[1617321165449,70.0026,1970.2,1969.4,2.90695]
[1617321166651,68.0026,1970.2,1969.4,2.90695]
[1617321167553,68.0026,1970.2,1970.1,2.90695]
[1617321167554,66.7948,1970.2,1970.1,2.90695]
[1617321168255,68.7948,1970.2,1969.3,1.1]
[1617321168653,70.0262,1970.2,1969.3,1.1]
[1617321168853,70.0262,1970.2,1969.2,66.7948]
[1617321169154,100.0262,1970.2,1969.2,66.7948]
[1617321169556,100.0262,1970.2,1969.7,2.90695]
[1617321171558,4.54205,1969.8,1969.7,2.90695]
[1617321173364,2.90695,1969.8,1969.7,2.90695]
[1617321177565,2.90695,1969.8,1969.5,2.90695]
[1617321177765,14.5275,1969.7,1969.5,2.90695]
[1617321179368,14.5275,1969.7,1969.5,4.00695]
[1617321182672,14.5275,1969.7,1969.6,61.1083]
[1617321183474,14.5275,1969.7,1969.5,2.90695]
[1617321183773,18.85675,1969.7,1969.5,2.90695]
[1617321186195,18.85675,1969.7,1969.6,82.0673]
[1617321186384,17.43445,1969.7,1969.6,82.0673]
[1617321188078,17.43445,1969.7,1969.5,2.90695]
[1617321188278,89.23915,1969.7,1968.9,1.1]
[1617321188580,119.23915,1969.7,1968.9,1.1]
[1617321189680,2.90695,1969.0,1968.9,4.00695]
[1617321189881,4.56875,1969.0,1968.9,4.00695]
[1617321202596,2.90695,1969.0,1968.9,4.00695]
[1617321202796,85.0259,1969.7,1968.9,4.00695]
[1617321202996,85.0259,1969.7,1968.9,5.33175]
[1617321203797,85.0259,1969.7,1969.6,2.90695]
[1617321204098,14.5275,1969.7,1969.6,85.14035]
[1617321204898,14.5275,1969.7,1969.6,2.90695]
[1617321205500,96.8106,1969.7,1968.8,82.2831]
[1617321205700,100.2342,1969.7,1968.9,1.1]
[1617321205900,100.2342,1969.7,1969.2,2.90695]
[1617321206300,101.257,1969.7,1968.9,1.1]
[1617321206506,17.9511,1969.7,1968.9,1.1]
[1617321206710,58.5992,1969.3,1968.9,1.1]
[1617321206902,60.2062,1969.3,1968.9,1.1]
[1617321207401,90.2062,1969.3,1968.9,1.1]
[1617321207902,2.90695,1969.0,1968.9,1.1]
[1617321208702,2.90695,1969.0,1968.8,1.1]
[1617321209103,13.8631,1968.9,1968.8,1.1]
[1617321209403,15.072,1968.9,1968.8,1.1]
[1617321209604,15.072,1968.9,1968.0,1.1]
[1617321209903,70.4947,1968.7,1968.3,2.90695]
[1617321210104,70.4947,1968.7,1968.4,1.1]
[1617321211903,2.90695,1968.5,1968.4,1.1]
[1617321215108,13.8631,1968.9,1968.4,1.1]
[1617321215908,13.8631,1968.9,1968.8,2.90695]
[1617321216109,13.8631,1968.9,1968.8,4.00695]
[1617321218009,16.77005,1968.9,1968.8,4.00695]
[1617321218410,16.77005,1968.9,1968.8,67.97765]
[1617321219430,16.77005,1968.9,1968.8,4.00695]
[1617321219612,16.77005,1968.9,1968.3,0.02]
[1617321219916,72.9553,1968.8,1968.4,2.90695]
[1617321220111,72.9553,1968.8,1968.4,4.00695]
[1617321221111,15.2162,1968.9,1968.4,4.00695]
[1617321222111,2.90695,1968.5,1968.4,4.00695]
[1617321223211,4.53325,1968.5,1968.4,4.00695]
[1617321224214,2.90695,1968.5,1968.4,4.00695]
[1617321225119,4.48325,1968.5,1968.4,4.00695]
[1617321227225,2.90695,1968.5,1968.4,4.00695]
[1617321233255,13.8631,1968.9,1968.4,4.00695]
[1617321234139,13.8631,1968.9,1968.7,2.90695]
[1617321235737,13.8631,1968.9,1968.7,73.80535]
[1617321236145,2.90695,1968.8,1968.7,73.80535]
[1617321239648,13.8631,1968.9,1968.7,4.00695]
[1617321241853,13.8631,1968.9,1968.8,66.7046]
[1617321242053,13.8631,1968.9,1968.7,4.00695]
[1617321242856,13.8631,1968.9,1968.7,6.00695]
[1617321244158,12.3224,1968.9,1968.7,6.00695]
[1617321244661,12.3224,1968.9,1968.7,4.00695]
[1617321244859,11.5591,1968.9,1968.7,4.00695]
[1617321247488,11.5591,1968.9,1968.8,63.0546]
[1617321247662,11.5591,1968.9,1968.8,64.1546]
[1617321248861,11.5591,1968.9,1968.8,65.1724]
[1617321249563,11.5591,1968.9,1968.8,64.1546]
[1617321250561,11.5591,1968.9,1968.8,65.1666]
[1617321253069,11.5591,1968.9,1968.8,64.1546]
[1617321254270,11.5591,1968.9,1968.8,1.1]
[1617321254772,11.5591,1968.9,1968.7,2.90695]
[1617321255172,11.5591,1968.9,1968.7,4.00695]
[1617321255372,11.5591,1968.9,1968.7,2.90695]
[1617321257673,11.5591,1968.9,1968.7,4.00695]
[1617321258477,11.5591,1968.9,1968.8,70.6759]
[1617321259482,11.5591,1968.9,1968.8,69.5759]
[1617321260691,11.5591,1968.9,1968.8,70.6759]
[1617321264880,11.5591,1968.9,1968.8,69.5759]
[1617321266485,11.5591,1968.9,1968.8,70.6759]
[1617321268285,11.5591,1968.9,1968.8,1.1]
[1617321268486,75.35295,1968.9,1968.7,2.90695]
[1617321276695,14.46605,1968.9,1968.7,2.90695]
[1617321286910,15.49665,1968.9,1968.7,2.90695]
[1617321290416,14.46605,1968.9,1968.7,2.90695]
[1617321294723,44.46605,1968.9,1968.7,2.90695]
[1617321294923,44.46605,1968.9,1968.5,0.02]
[1617321295123,85.2385,1968.7,1968.5,0.02]
[1617321295322,85.2385,1968.7,1967.4,86.3298]
[1617321296729,85.2385,1968.7,1968.3,1.1]
[1617321298538,31.2148,1968.6,1968.2,2.90695]
[1617321298726,2.90695,1968.4,1968.1,0.02]
[1617321299430,30.0,1968.3,1968.1,0.02]
[1617321299740,61.6768,1968.2,1968.0,2.90695]
[1617321300029,62.7773,1968.2,1968.0,2.90695]
[1617321300634,2.90695,1968.1,1967.8,2.90695]
[1617321301537,2.90695,1968.1,1966.9,1.1]
[1617321302740,62.7773,1968.2,1967.7,1.1]
[1617321303241,62.7773,1968.2,1967.6,2.90695]
[1617321304043,1.1005,1968.2,1967.6,2.90695]
[1617321304244,1.1005,1968.2,1967.9,83.3296]
[1617321304649,1.1005,1968.2,1967.6,2.90695]
[1617321304850,2.90695,1967.7,1967.6,2.90695]
[1617321321463,2.90695,1967.7,1967.6,2.92695]
[1617321322463,3.98115,1967.7,1967.6,2.92695]
[1617321325768,2.90695,1967.7,1967.6,2.92695]
[1617321327969,2.90695,1967.7,1967.6,4.02695]